Cogmind - Beta 15 @@@ ROGUE MODE // 2025.07.01 @ 10:07:31 Player: Fangrelle Result: Smashed by cave-in Performance ------------- Evolutions (0) 0 Regions Visited (1) 200 Robots Destroyed (23) 115 Value Destroyed (512) 512 Prototype IDs (0) 0 Alien Tech Used (0) 0 Bonus (0) 0 TOTAL SCORE: 827 Bonus ------- None Cogmind --------- Core Integrity 0/250 Matter 190/300 Energy 246/250 System Corruption 0% Temperature Warm (100) Movement Treading (160) Location -10/Materials Parts ------- > --- POWER (1) -------- Ion Engine > --- PROPULSION (2) --- Light Treads Light Treads > --- UTILITY (2) ------ Large Storage Unit Light Armor Plating > --- WEAPON (2) ------- Assault Rifle Mining Laser > --- INVENTORY (15) --- Light Treads Light Treads Light Treads Wheel Structural Scanner Machine Analyzer Utility Shielding Tractor Beam Particle Gun Assault Rifle Assault Rifle Light Cannon Grenade Launcher Grenade Launcher Welding Torch Peak State ------------ > --- POWER ------------ Light Nuclear Core > --- PROPULSION ------- Light Treads Light Treads > --- UTILITY ---------- Large Storage Unit Light Armor Plating > --- WEAPON ----------- Assault Rifle Assault Rifle > --- INVENTORY -------- Ion Engine Light Treads Light Treads Wheel Wheel Large Storage Unit ECM Suite Tractor Beam Tractor Beam Particle Gun Assault Rifle Assault Rifle Grenade Launcher Mining Laser [Rating: 10] Favorites ----------- Power Ion Engine Engine Ion Engine Power Core Light Nuclear Core Propulsion Light Treads Treads Light Treads Leg Aluminum Leg Utility Large Storage Unit Device Tractor Beam Storage Large Storage Unit Protection Light Armor Plating Weapon Assault Rifle Energy Gun Small Laser Ballistic Gun Assault Rifle Launcher Grenade Launcher Special Weapon Mining Laser Build | -11 -10 ------- Run | Yrd Mat Slots Evolved . | . . Power . | . . Propulsion . | . . Utility . | . . Weapon . | . . Parts Attached 14 | 1 13 Power 2 | . 2 Engine 1 | . 1 Core 1 | . 1 Reactor . | . . Propulsion 4 | . 4 Treads 4 | . 4 Leg . | . . Wheel . | . . Hover . | . . Flight . | . . Utility 3 | 1 2 Device 1 | 1 . Storage 1 | . 1 Processor . | . . Hackware . | . . Protection 1 | . 1 Artifact . | . . Weapon 5 | . 5 Energy Gun . | . . Energy Cannon . | . . Ballistic Gun 3 | . 3 Ballistic Cannon . | . . Launcher 1 | . 1 Special Weapon 1 | . 1 Impact Weapon . | . . Slashing Weapon . | . . Piercing Weapon . | . . Special Melee Weapon . | . . Unidentified Prototypes . | . . Parts Lost . | . . Power . | . . Propulsion . | . . Utility . | . . Weapon . | . . Highest Loss Streak . | . . To Critical Strikes . | . . Average Backups 13 | 6 13 Power . | 1 . Propulsion 3 | 4 3 Utility 3 | . 4 Weapon 5 | 1 5 Tool/Special . | . . Unused Backups 27 | . 27 Power 3 | . 3 Propulsion 7 | . 7 Utility 7 | . 7 Weapon 9 | . 9 Tool/Special 1 | . 1 Average Slot Usage (%) 99 | . 99 Engine 12 | . 12 Core 1 | . 1 Treads 26 | . 26 Leg 1 | . 1 Storage 14 | . 14 Protection 13 | . 13 Energy Gun 2 | . 2 Ballistic Gun 24 | . 24 Peak Build Rating 10 | 7 10 Average Rating 8 | 6 8 On Entrance 6 | 6 7 Naked Turns . | . . Heaviest Build 33 | 13 33 Greatest Support 40 | 20 40 Greatest Overweight (x) 1 | . 1 Average Overweight (x) . | . . Largest Inventory Capacity 15 | 8 15 Average Capacity 14 | 8 14 Most Carried 15 | 6 15 Average Carried 13 | 6 13 Final Capacity 15 | 8 15 Final Carried 15 | 6 15 Class Distribution -------------------- 100% | Mutant Dominant Class ---------------- Mutant | -10/Materials Resources | -11 -10 ----------- Run | Yrd Mat Matter Collected 601 | 219 382 Remotely 10 | 10 . Salvage Created 664 | 55 609 Parts 44 | 3 41 Haulers Intercepted 1 | . 1 Recyclers Shooed 2 | . 2 Parts Field Recycled . | . . Retrieved Matter . | . . Parts Self-Destructed . | . . Prevented . | . . Kills | -11 -10 ------- Run | Yrd Mat Combat Hostiles Destroyed 15 | . 15 Guns 12 | . 12 AOE 3 | . 3 Classes Destroyed 7 | 1 6 Builder 1 | . 1 Hauler 1 | . 1 Recycler 2 | 1 1 Mechanic 1 | . 1 Watcher 3 | . 3 Swarmer 6 | . 6 Grunt 9 | . 9 Best Kill Streak 4 | 1 4 Combat Bots Only 3 | . 3 Max Kills in Single Turn 2 | 1 2 Gunslinging 1 | . 1 Exploded 1 | . 1 Melee . | . . Uniques/NPCs Destroyed . | . . Combat | -11 -10 -------- Run | Yrd Mat Hostile Shots Fired 76 | . 76 Missed 21 | . 21 Hits 55 | . 55 Projectile 55 | . 55 Critical Strikes 1 | . 1 Damage Taken 950 | . 950 Core 254 | . 254 Absorbed by Shields . | . . Regen/Repaired (Parts) 82 | . 82 Core Remaining (%) 100 | 100 . Volleys Fired 91 | 9 82 Largest 2 | 2 2 Hottest 100 | 60 100 Shots Fired 167 | 18 149 Gun 156 | 18 138 Cannon . | . . Launcher 5 | . 5 Special 6 | . 6 Kinetic 125 | 9 116 Thermal 37 | 9 28 Explosive 5 | . 5 Electromagnetic . | . . Robot Hit Streak 7 | 4 7 Robot Miss Streak 8 | 3 8 Penetration Max . | . . Secondary Targets 3 | . 3 Max Gunslinging Chain 1 | . 1 Shots Hit Robots 80 | 9 71 Core Hits 40 | 2 38 Critical Kills 1 | . 1 Critical Parts Destroyed 1 | . 1 Critical Strikes 2 | . 2 Destroy 2 | . 2 Melee Attacks . | . . Impact . | . . Slashing . | . . Piercing . | . . Sneak Attacks . | . . Combat Hostiles . | . . Follow-up Attacks . | . . Damage Inflicted 1515 | 86 1429 Guns 964 | 86 878 Cannons . | . . Explosions 551 | . 551 Melee . | . . Ramming . | . . Kinetic 761 | 30 731 Thermal 578 | 56 522 Explosive 176 | . 176 Electromagnetic . | . . Impact . | . . Slashing . | . . Piercing . | . . Highest Corruption . | . . Average Corruption . | . . Corruption Purged . | . . Corruption Blocked . | . . Overload Shots . | . . Overflow Damage 145 | . 145 Projectiles . | . . Explosions 145 | . 145 Melee . | . . Knockbacks . | . . Impact . | . . Kinetic . | . . Secondary . | . . Self-Inflicted Damage 87 | . 87 Shots 1 | . 1 Rammed . | . . Targets Rammed . | . . Kicked . | . . Crushed . | . . Highest Temperature 166 | 40 166 Average Temperature 42 | 22 45 Received Heat Transfer 240 | . 240 Siege Activations . | . . Martial Activations . | . . Shielding Activations . | . . Robots Disrupted . | . . Combat Hostiles . | . . Robots Corrupted . | . . Combat Hostiles . | . . Parts Fried . | . . Impact Corruptions . | . . Robots Melted . | . . Combat Hostiles . | . . Parts Melted . | . . Heat Transferred 725 | 125 600 Parts Sabotaged . | . . Parts Stolen . | . . Parts Stripped . | . . Power Chain Reactions . | . . Alert | -11 -10 ------- Run | Yrd Mat Maximum Alert Level 1 | . 1 Low Security (%) 95 | 100 95 Level 1 4 | . 4 Level 2 . | . . Level 3 . | . . Level 4 . | . . Level 5 . | . . High Security . | . . Max Security . | . . Peak Influence 221 | 5 221 Initial . | . . Average 107 | 2 110 Influence Increases 578 | 5 573 Destroy 0b10 Robot/C 300 | . 300 Destroy 0b10 Robot/NC 40 | 5 35 Destroy Leader 78 | . 78 Successful Hack 20 | . 20 Select Force Hacks 30 | . 30 Disable Machine 60 | . 60 Destroy Structure 50 | . 50 Influence Decreases 443 | 5 438 Time Decay 443 | 5 438 Squads Dispatched 3 | . 3 Investigation 2 | . 2 Extermination . | . . Reinforcement 1 | . 1 Assault . | . . Garrison . | . . Intercept . | . . Searches Triggered . | . . Construction Impeded . | . . Haulers Reinforced . | . . Active Scanning Responses . | . . Cargo Convoy Interrupts . | . . Stealth | -11 -10 --------- Run | Yrd Mat Distress Signals 4 | . 4 Communications Jammed . | . . Distress Signals . | . . Times Spotted 26 | . 26 Peak Tracking Total 4 | . 4 Tactical Retreats . | . . Traps | -11 -10 ------- Run | Yrd Mat Traps Triggered 1 | . 1 Indirectly . | . . Trap Hack Attempts . | . . Triggered . | . . Disarmed . | . . Reprogrammed . | . . Reused . | . . Traps Extracted . | . . Installed . | . . Triggered . | . . Machines | -11 -10 ---------- Run | Yrd Mat Machines Disabled 4 | . 4 Max in Single Turn 4 | . 4 Machines Repaired . | . . Machines Dismantled . | . . Machines Sabotaged . | . . Overloaded Fab Kills . | . . Hacking | -11 -10 --------- Run | Yrd Mat Machines Accessed 7 | . 7 Terminals 4 | . 4 Fabricators . | . . Repair Stations 1 | . 1 Recycling Units 2 | . 2 Scanalyzers . | . . Garrison Access . | . . Total Hacks 23 | . 23 Successful 14 | . 14 Failed 9 | . 9 Catastrophic 1 | . 1 Database Lockouts . | . . Manual 21 | . 21 Terminals 13 | . 13 Fabricators . | . . Repair Stations 2 | . 2 Recycling Units 8 | . 8 Scanalyzers . | . . Garrison Access . | . . Terminal Hacks . | . . Fabricator Hacks . | . . Repair Station Hacks 2 | . 2 Scan Component 1 | . 1 Repair 1 | . 1 Recycling Unit Hacks . | . . Scanalyzer . | . . Garrison Access Hacks . | . . Unauthorized Hacks 12 | . 12 Terminals 7 | . 7 Assimilate 2 | . 2 Botnet 3 | . 3 Operators 1 | . 1 Skim 1 | . 1 Fabricators . | . . Repair Stations . | . . Recycling Units 5 | . 5 Monitor 1 | . 1 Reject 1 | . 1 Recyclers 1 | . 1 Mask 1 | . 1 Tunnel 1 | . 1 Scanalyzers . | . . Garrison Access . | . . Data Cores Recovered . | . . Used . | . . Hacking Detections 6 | . 6 Full Trace Events 1 | . 1 Feedback Events . | . . Feedback Blocked . | . . Robot Schematics Acquired . | . . Robots Built . | . . Authchips . | . . Time . | . . Total Robot Build Rating . | . . Part Schematics Acquired . | . . Parts Built . | . . Authchips . | . . Time . | . . Total Part Build Rating . | . . Parts Repaired 1 | . 1 Time 26 | . 26 Parts Recycled . | . . Recycled Matter . | . . Retrieved Matter . | . . Retrieved Components . | . . Parts Scanalyzed . | . . Part Schematics Acquired . | . . Parts Damaged . | . . Bothacking | -11 -10 ------------ Run | Yrd Mat Used RIF Installer . | . . Robots Hacked . | . . Non-combat . | . . Combat . | . . Robot Hacks Applied . | . . Relay Couplers Released . | . . Fabnet Peak Effective % . | . . Robots Rewired . | . . Allies Hacked . | . . Hacks Repelled . | . . Allies | -11 -10 -------- Run | Yrd Mat Total Allies . | . . Largest Group . | . . Highest-Rated Group . | . . Highest-Rated Ally . | . . Total Orders . | . . Ally Attacks . | . . Total Damage . | . . Kills . | . . Allies Corrupted . | . . Allies Melted . | . . Intel | -11 -10 ------- Run | Yrd Mat Active Infowar (turns) . | . . Robot Analysis Total . | . . Derelict Logs Recovered . | . . Drone Launches . | . . Drone Recoveries . | . . Exploration | -11 -10 ------------- Run | Yrd Mat Turns Passed 1363 | 40 1323 Spaces Moved 634 | 12 622 Core . | . . Treads 590 | . 590 Legs 44 | 12 32 Wheels . | . . Hover . | . . Flight . | . . Fastest Speed 120 | 120 120 Average Speed 159 | 120 160 Slowest Speed 190 | 120 190 Overloaded Moves . | . . Propulsion Burnouts . | . . Robots Hopped . | . . Potential Cave-ins 2 | . 2 Cave-ins Triggered 1 | . 1 Exploration Rate (%) 47 | 3 91 Regions Visited 1 Branch Regions . Pre-discovered Areas 1 | . 1 Known Exits Taken . | . . Unknown Exits Taken 1 | 1 . Scrap Searched . | . . Spaces Dug 5 | . 5 Terrain Destroyed 62 | . 62 Melee . | . . Projectile 6 | . 6 AOE 56 | . 56 Terrain Rammed . | . . Walls Destroyed . | . . Machines Disabled . | . . Actions | -11 -10 --------- Run | Yrd Mat Total 819 | 21 798 Wait 37 | . 37 Move 632 | 11 621 Hop . | . . Pick Up 23 | . 23 Fast Attach 4 | 1 3 Attach 5 | . 5 Detach 1 | . 1 Swap 7 | . 7 Drop 19 | . 19 Fire 91 | 9 82 Melee . | . . Ram . | . . Kick . | . . Crush . | . . Escape Stasis . | . . Rewire . | . . Trap . | . . Miscellaneous . | . . Route ------- -11/Scrapyard -10/Materials (discovered 5 exits: [*Mat x3] / [*Min x2]) History --------- Turn | Location | Event 27 | -11/Scrapyard | Discovered new exit (range 3) 41 | -11/Scrapyard | Entered Materials 284 | -10/Materials | Discovered new exit (range 16) 344 | -10/Materials | Build established: Mutant 479 | -10/Materials | Discovered new exit (range 13) 610 | -10/Materials | Repaired Lgt. Armor Plating 932 | -10/Materials | Discovered new exit (range 6) 1066 | -10/Materials | Discovered new exit (range 15) 1209 | -10/Materials | Discovered new exit (range 15) 1364 | -10/Materials | Crushed by falling debris 1364 | -10/Materials | Smashed by cave-in Last Messages --------------- 01092_ Connecting with Terminal... 01096_ U-05 Engineer lays Concrete. 01100_ The unstable cave ceiling collapses. 01101_ U-05 Engineer lays Concrete. 01102_ U-05 Engineer builds a Wall. 01114_ U-05 Engineer lays Concrete. 01116_ U-05 Engineer builds a Wall. 01121_ U-05 Engineer lays Concrete. 01127_ R-06 Scavenger collects Structural Scanner. 01129_ U-05 Engineer lays Concrete. 01135_ U-05 Engineer builds a Wall. 01173_ Acquired 40 matter. 01209_ EXIT=FOUND 01236_ Connecting with Recycling Unit... 01283_ K-01 Serf cleans the Purification Channel. 01290_ Dropped Tractor Beam. 01290_ Acquired Lgt. Cannon. 01348_ U-05 Engineer builds a Wall. 01364_ The unstable cave ceiling collapses. 01364_ Crushed by falling debris. Map ----- +----------------------------------------------------+ | ??????????????????????????????? | | ??????????????????????????????? | | ??????????????????????????????? | | ??????????????????????????????? | | ??????????????????????######### | | ???????????????? | | ???????????????? | | ???????????????? | | ????????????????? | | ?????????????????############## | | ??????????????????# | | ??????????????????# < | | ?????????????????? | | ?????????????????????#+####### | | ????????????????????????????## | | ??????????????????#?????????## | | ??????????????????# ??"""??## | | ???????????? ???# """""### | | ???????????? #??# """""### | | ???????????? ??+ """""### | | ???????????? #??# """""### | | ???????????# #??#= """""### | | ???????????# #??# ###= | | ???????????# o #??#######+##?# | | ?????###???# ########## #### | | ?????#@#???# """ | | ?????# ##??# "T" | | ?????# #??# | | ??########## ####### | | ?# ## " #######+ | | ?# """" !## """ # * | | ?# """" ## """ # %= | | ?# """" # """ # [ | | ?# # "" # | | ?# """ + """ / | | ?# """ # "" # | | ?# """ # """ # | | ?# ## "o # | | ??########## ######## | | ?# """ [ # #??????? | | ?# "T" / #??????? | | ?# ! # #??????? | | ?# = ! # #?????? | | ?########### #?????? | | ????# #??????? | | ????# #??????? | | ????# #??????? | | ????# ############ #??????? | | ????# #??????????# #??????? | | ????# #?????????## ##?????? | +----------------------------------------------------+ Best States ------------- Heat Dissipation 25 Energy Generation 14 Energy Capacity 250 Matter Stores 300 Matter Capacity 300 Sight Range 16 Terrain Scan Density 10 Armor Coverage 150 Evasion (%) 55 Recoil Reduction 2 Item Schematics ----------------- None Robot Schematics ------------------ None Fabricated ------------ Nothing Repaired ---------- Lgt. Armor Plating | 8% | -10/Materials Alien Tech Used ----------------- None Achievements -------------- None Challenges ------------ None Game ------ Seed GravityLatentCorpse Manual? 0 Play Time 00:12:43 Cumulative 157.3 hours Start 2025.07.01 @ 03:35:58 End 2025.07.01 @ 10:07:31 Sessions 3 Manual Loads 0 Difficulty Rogue Special Mode None Game No. 301 Rogue 301 Adventurer 0 Explorer 0 Win Type - Total 0 Types 0/0/0/0/0/0/0/0/0/0 Lore% 44 Gallery% 39 Achievement% 36 Wizard Run 0 Options --------- Layout 0 ASCII 0 Keyboard 0 Movement Mouse Keybinds 0 Fullscreen 1 Font 24/Smallcaps Map View 91x25 Zoom Use 98% Tactical HUD 1 Map Filters NONE Filters NONE Steam 1 RUN: 8258367d-ffb8-4b91-9bb0-e88fba702138